bitfinex/quotes_ETHUSD_20250905
["timestamp","ask_amount","ask_price","bid_price","bid_amount"]
[1757049330392,6.31073917,4341.9,4341.8,0.025]
[1757049331057,6.31073917,4341.9,4341.8,0.029]
[1757049331382,6.21133917,4341.9,4341.8,0.029]
[1757049331583,3.9082,4341.9,4341.8,0.3372]
[1757049331895,6.21133917,4341.9,4341.8,0.7855]
[1757049332096,3.9082,4341.9,4341.8,0.7855]
[1757049332798,6.21133917,4341.9,4341.8,0.7855]
[1757049332997,6.21133917,4341.9,4341.8,0.029]
[1757049334195,3.9082,4341.9,4341.8,0.029]
[1757049334376,3.9082,4341.9,4341.8,0.7855]
[1757049336223,3.9082,4341.9,4341.8,0.3372]
[1757049336369,3.9082,4341.9,4341.8,0.7855]
[1757049337502,3.9082,4341.9,4341.8,1.285]
[1757049339584,3.9082,4341.9,4341.8,0.7855]
[1757049339903,3.9082,4341.9,4341.8,1.2597]
[1757049340326,3.1162,4341.9,4341.8,1.2597]
[1757049343314,0.1162,4341.9,4341.8,1.84752381]
[1757049343521,0.1162,4341.9,4341.8,1.2597]
[1757049346083,0.1162,4341.9,4341.8,0.3372]
[1757049346279,0.1162,4341.9,4341.8,0.029]
[1757049347421,0.1162,4341.9,4341.8,1.2247]
[1757049347818,0.1162,4341.9,4341.8,0.7505]
[1757049348219,0.1162,4341.9,4341.8,4.5935]
[1757049348833,0.1162,4341.9,4341.8,3.872]
[1757049350026,0.2152,4341.9,4341.8,0.029]
[1757049350332,0.7051,4341.9,4341.8,0.029]
[1757049350536,3.7051,4341.9,4341.8,0.029]
[1757049350705,3.2152,4341.9,4341.8,0.029]
[1757049351531,5.51833917,4341.9,4341.8,0.029]
[1757049352038,6.00823917,4341.9,4341.8,0.029]
[1757049352235,5.51833917,4341.9,4341.8,0.029]
[1757049353422,3.1162,4341.9,4341.8,0.029]
[1757049356257,3.1162,4341.9,4341.8,1.2247]
[1757049356442,3.1162,4341.9,4341.8,0.029]
[1757049357427,5.51833917,4341.9,4341.8,0.029]
[1757049358331,6.00823917,4341.9,4341.8,0.029]
[1757049360424,6.31033917,4341.9,4341.8,0.029]
[1757049361880,3.1162,4341.9,4341.8,0.3221]
[1757049362179,3.1162,4341.9,4341.8,0.7505]
[1757049363371,3.1162,4341.9,4341.8,1.2247]
[1757049367734,3.001,4341.9,4341.8,1.2247]
[1757049367934,10.52703917,4341.9,4341.8,0.029]
[1757049368167,11.05230586,4341.9,4341.8,0.029]
[1757049368338,11.34612039,4341.9,4341.8,0.029]
[1757049368538,15.6776239,4341.9,4341.8,0.029]
[1757049369938,15.09984268,4341.9,4341.8,0.029]
[1757049372271,15.39365721,4341.9,4341.8,0.029]
[1757049372567,15.6776239,4341.9,4341.8,0.029]
[1757049373669,15.6776239,4341.9,4341.8,1e-08]
[1757049377267,15.6776239,4341.9,4341.5,0.004]
[1757049377268,3.792,4341.8,4341.5,1e-08]
[1757049377450,3.792,4341.6,4341.5,1e-08]
[1757049377651,6.09540443,4341.4,4341.3,1e-08]
[1757049377872,16.37592247,4341.4,4341.3,1e-08]
[1757049378182,17.17402247,4341.4,4341.3,1e-08]
[1757049381154,6.09545748,4341.3,4341.2,1e-08]
[1757049381353,6.62777201,4341.3,4341.2,1e-08]
[1757049381574,10.74950722,4341.3,4341.2,1e-08]
[1757049381778,10.84187946,4341.3,4341.2,1e-08]
[1757049382451,10.60337946,4341.3,4341.2,1e-08]
[1757049385893,10.14557946,4341.3,4341.2,1e-08]
[1757049387371,10.88734615,4341.3,4341.2,1e-08]
[1757049387868,6.38932508,4341.2,4341.1,1e-08]
[1757049388069,10.69012508,4341.2,4341.1,1e-08]
[1757049388286,10.79462508,4341.2,4341.1,1e-08]
[1757049389381,0.792,4341.0,4340.7,0.004]
[1757049389691,7.46793521,4340.8,4340.7,0.004]
[1757049390005,7.46793521,4340.8,4340.2,0.4619]
[1757049390006,3.09593512,4340.4,4340.2,0.4619]
[1757049390181,13.61487033,4340.4,4340.1,0.4448]
[1757049390786,13.61487033,4340.4,4339.9,0.4619]
[1757049390976,13.61487033,4340.4,4340.3,0.4488]
[1757049391391,13.61487033,4340.4,4340.3,0.7524]
[1757049392075,13.61487033,4340.4,4340.3,1.2143]
[1757049392280,10.05413512,4340.4,4340.3,1.2143]
[1757049393786,2.5927431,4340.4,4340.3,1.2143]
[1757049394090,6.3847431,4340.4,4340.3,1.2143]
[1757049394290,6.21113512,4340.4,4340.3,1.2143]
[1757049394498,5.41913512,4340.4,4340.3,1.2143]
[1757049395012,6.21113512,4340.4,4340.3,1.2143]
[1757049396323,6.38280548,4340.4,4340.3,1.2143]
[1757049398904,6.21113512,4340.4,4340.3,1.2143]
[1757049400220,3.9072,4340.4,4340.3,1.2143]
[1757049400520,6.21113512,4340.4,4340.3,1.2143]
[1757049403317,3.9072,4340.4,4340.3,1.2143]
[1757049405224,6.21113512,4340.4,4340.3,1.2143]
[1757049405409,3.9072,4340.4,4340.3,1.2143]
[1757049405720,0.1152,4340.4,4340.3,1.33573]
[1757049405890,0.001,4340.7,4340.5,2.30385648]
[1757049406090,0.001,4340.7,4340.6,0.02303828]
[1757049406517,0.001,4340.7,4340.6,1.2372]
[1757049406718,0.001,4340.7,4340.6,1.6038618]
[1757049408018,0.001,4340.7,4340.6,3.90769076]
[1757049408419,0.001,4340.7,4340.6,1.6038618]
[1757049410229,0.001,4340.7,4340.6,3.90769076]
[1757049413329,0.001,4340.7,4340.6,3.93072904]
[1757049413539,0.001,4340.7,4340.6,7.49146425]
[1757049413712,0.001,4340.7,4340.6,7.46842597]
[1757049414133,0.001,4340.7,4340.6,13.98362597]
[1757049415123,0.001,4340.7,4340.6,10.42289076]
[1757049416101,0.001,4340.7,4340.6,4.02289076]
[1757049417835,0.001,4340.7,4340.6,7.60666425]
[1757049418017,0.001,4340.7,4340.6,7.58362597]
[1757049418217,0.001,4340.7,4340.6,13.98362597]
[1757049418621,0.001,4340.7,4340.6,13.98762597]
[1757049419011,0.001,4340.7,4340.6,10.42689076]
[1757049419218,0.001,4340.7,4340.6,13.98762597]
[1757049421312,0.001,4340.7,4340.6,16.25462596]
[1757049421547,0.001,4340.7,4340.6,19.25462596]
[1757049424359,0.001,4340.7,4340.6,19.34694086]
[1757049425213,0.001,4341.2,4340.7,3.0]
[1757049425419,0.001,4341.6,4341.2,3.0]
[1757049425750,0.001,4341.6,4341.5,6.16978658]
[1757049426042,0.001,4341.6,4341.5,10.12598658]
[1757049426410,0.001,4341.6,4341.5,17.54978018]
[1757049426615,0.001,4341.6,4341.5,19.81768815]
[1757049436652,0.001,4341.9,4341.5,19.81768815]
[1757049436653,0.001,4341.9,4341.8,2.30319222]
[1757049436965,0.001,4341.9,4341.8,16.26466264]
[1757049437166,0.001,4341.9,4341.8,17.60846264]
[1757049437329,0.001,4341.9,4341.8,26.22642953]
[1757049437764,0.001,4341.9,4341.8,22.66569432]
[1757049440273,0.001,4342.4,4341.9,3.0]
[1757049440479,0.001,4342.4,4342.3,2.30292702]
[1757049440772,0.001,4342.4,4342.3,14.7349915]
[1757049440968,0.001,4342.4,4342.3,23.2074921]
[1757049441169,0.001,4342.4,4342.3,24.2399921]
[1757049442860,0.001,4342.4,4342.3,23.7721921]
[1757049443460,0.001,4342.4,4342.3,20.21145689]
[1757049445991,0.001,4342.4,4342.3,19.45065689]
[1757049446485,0.001,4342.4,4342.3,19.90015689]
[1757049446887,0.001,4342.4,4342.3,19.89915689]
[1757049447380,0.001,4342.4,4342.3,19.44965689]
[1757049448264,0.001,4342.4,4342.3,19.89915689]
[1757049448459,0.001,4342.4,4342.3,20.21045689]
[1757049449591,0.001,4342.4,4342.3,20.67825689]
[1757049450390,0.001,4342.4,4342.3,20.21045689]
[1757049451391,0.001,4342.4,4342.3,20.67825689]
[1757049453096,0.001,4342.4,4342.3,20.21045689]
[1757049453277,0.001,4342.4,4342.3,20.67825689]
[1757049454265,0.001,4342.4,4342.3,25.00616065]
[1757049454793,0.026,4342.8,4342.7,2.3027149]
[1757049454976,0.026,4342.8,4342.7,6.60126849]
[1757049455177,0.026,4342.8,4342.7,7.94506849]
[1757049455485,0.026,4342.8,4342.7,14.4373408]
[1757049456196,1e-08,4342.8,4342.7,21.76524456]
[1757049462502,1e-08,4342.8,4342.7,21.31574456]
[1757049462702,1e-08,4342.8,4342.7,20.84794456]
[1757049462894,1e-08,4342.8,4342.7,21.27744456]
[1757049463804,1e-08,4342.8,4342.7,21.76304456]
[1757049465512,1e-08,4342.8,4342.7,22.55504456]
[1757049468581,1e-08,4342.8,4342.7,22.06944456]
[1757049468921,1e-08,4342.8,4342.7,18.23144456]
[1757049469112,1e-08,4342.8,4342.7,22.06844456]
[1757049469482,1e-08,4342.8,4342.7,17.00994456]
[1757049469812,1e-08,4342.8,4342.7,20.53564456]
[1757049470900,1e-08,4342.8,4342.7,20.96514456]
[1757049471103,1e-08,4342.8,4342.7,21.25094456]
[1757049472891,1e-08,4342.8,4342.7,20.53564456]
[1757049473407,1e-08,4342.8,4342.7,21.25094456]
[1757049473587,0.001,4343.3,4343.0,2.30255583]
[1757049473790,0.001,4343.3,4343.2,10.42235356]
[1757049473991,0.001,4343.3,4343.2,10.82335356]
[1757049474191,0.001,4343.3,4343.2,18.23070459]
[1757049474714,1e-08,4343.8,4343.7,3.09418477]
[1757049474894,1e-08,4343.8,4343.7,14.68370701]
[1757049475210,1e-08,4343.8,4343.7,15.88460701]
[1757049475409,1e-08,4343.8,4343.7,22.76230701]
[1757049476212,0.025,4347.8,4344.0,2.435]
[1757049476424,0.025,4347.8,4347.7,7.41997046]
[1757049476615,0.124,4347.8,4347.7,7.8700667]
[1757049476830,0.124,4347.8,4347.7,8.36956875]
[1757049477134,0.6017,4347.8,4347.7,14.88476875]
[1757049477311,0.025,4347.8,4347.7,19.49847251]
[1757049477634,0.124,4347.8,4347.7,17.1075838]
[1757049477794,0.124,4347.8,4347.7,14.88476875]
[1757049477983,0.124,4347.8,4347.7,14.89376875]
[1757049478185,0.124,4347.8,4347.7,8.71070205]
[1757049478512,0.124,4347.8,4347.7,6.19670205]
[1757049480513,0.3653,4347.8,4347.7,2.31070205]
[1757049480817,0.6407,4347.8,4347.7,2.02468737]
[1757049481024,0.6407,4347.8,4347.7,5.91368737]
[1757049481313,3.6407,4347.8,4347.7,0.21348737]
[1757049481514,3.7559,4347.8,4347.7,0.21348737]
[1757049481880,4.5479,4347.8,4347.7,0.21348737]
[1757049482083,0.792,4347.7,4347.2,3.905]
[1757049482319,0.1004,4347.3,4347.2,3.905]
[1757049482481,0.1004,4347.3,4347.2,4.11716105]
[1757049482688,0.6156,4347.3,4347.2,4.11716105]
[1757049483224,0.6156,4347.3,4347.2,4.12116105]
[1757049483800,2.91587833,4347.3,4347.2,0.21216105]
[1757049484003,5.91587833,4347.3,4347.2,0.21216105]
[1757049484238,2.30059585,4346.7,4346.6,3.911]
[1757049484444,2.91839585,4346.7,4346.6,4.12317243]
[1757049484736,3.03359585,4346.7,4346.6,0.21217243]
[1757049485096,2.30079252,4346.4,4346.2,3.911]
[1757049485318,2.30079252,4346.4,4346.3,0.21222271]
[1757049485711,2.61319252,4346.4,4346.3,0.21222271]
[1757049486021,2.91859252,4346.4,4346.3,0.21222271]
[1757049486224,3.03379252,4346.4,4346.3,0.21222271]
[1757049486511,6.03379252,4346.4,4346.3,0.21222271]
[1757049486836,6.03379252,4346.4,4345.8,0.025]
[1757049486837,2.30101935,4345.9,4345.8,0.025]
[1757049487021,2.30101935,4345.9,4345.8,0.23733829]
[1757049487224,6.71081935,4345.9,4345.8,0.025]
[1757049487730,10.62181935,4345.9,4345.8,0.025]
[1757049495901,6.71081935,4345.9,4345.8,0.025]
[1757049496222,10.61781935,4345.9,4345.8,0.025]
[1757049499217,2.30154894,4344.9,4344.8,0.025]
[1757049499560,10.11274894,4344.9,4344.8,0.025]
[1757049499721,10.45504894,4344.9,4344.8,0.025]
[1757049500121,10.42184894,4344.9,4344.8,0.025]
[1757049501649,10.45504894,4344.9,4344.8,0.025]
[1757049501868,2.30207877,4343.9,4343.8,0.025]
[1757049502164,10.11327877,4343.9,4343.8,0.2377974]
[1757049502359,10.42237877,4343.9,4343.8,0.2377974]
[1757049502770,10.42237877,4343.9,4343.8,0.025]
[1757049512152,10.42237877,4343.9,4343.8,0.2381302]
[1757049512355,10.42237877,4343.9,4343.8,0.23813052]
[1757049512557,10.42237877,4343.9,4343.8,0.025]
[1757049512878,10.73097877,4343.9,4343.8,1e-08]
[1757049514145,6.79377877,4343.9,4343.8,1e-08]
[1757049514358,10.69177877,4343.9,4343.8,1e-08]
[1757049514868,10.72497877,4343.9,4343.8,1e-08]
[1757049516430,10.44957877,4343.9,4343.8,1e-08]
[1757049519143,10.41637877,4343.9,4343.8,1e-08]
[1757049519669,6.51837877,4343.9,4343.8,1e-08]
[1757049519962,10.41337877,4343.9,4343.8,1e-08]
[1757049520662,10.41237877,4343.9,4343.8,1e-08]
[1757049521068,10.44557877,4343.9,4343.8,1e-08]
[1757049521264,10.41237877,4343.9,4343.8,1e-08]
[1757049521485,10.72097877,4343.9,4343.8,1e-08]
[1757049521768,11.00739591,4343.9,4343.8,1e-08]
[1757049522467,14.56243526,4343.9,4343.8,1e-08]
[1757049522651,14.56243526,4343.9,4342.8,0.025]
[1757049522652,3.09460885,4342.9,4342.8,0.025]
[1757049522852,15.3548482,4342.9,4342.8,0.025]
[1757049523064,15.6424482,4342.9,4342.8,0.025]
[1757049523570,15.6424482,4342.9,4342.8,1e-08]
[1757049523875,15.6969482,4342.9,4342.8,1e-08]
[1757049524038,15.6424482,4342.9,4342.8,1e-08]
[1757049524589,15.9178482,4342.9,4342.8,1e-08]
[1757049524877,3.09492702,4342.3,4342.2,0.004]
[1757049525079,13.65816637,4342.3,4342.2,0.004]
[1757049526572,13.75716637,4342.3,4342.2,0.004]
[1757049526753,0.792,4342.0,4341.8,0.029]
[1757049526954,9.4962,4341.9,4341.8,0.029]
[1757049527169,11.79933917,4341.9,4341.8,0.029]
[1757049527363,15.35437852,4341.9,4341.8,0.7978]
[1757049530575,15.35437852,4341.9,4341.8,1.2906]
[1757049532675,15.35437852,4341.9,4341.8,0.3272]
[1757049532882,15.35437852,4341.9,4341.8,0.029]
[1757049533092,15.45337852,4341.9,4341.8,0.029]
[1757049533281,15.35437852,4341.9,4341.8,0.029]
[1757049533664,3.09540443,4341.4,4341.3,0.004]
[1757049533987,9.98340443,4341.4,4341.3,0.004]
[1757049534173,9.98340443,4341.4,4341.3,1.2656]
[1757049534956,9.98340443,4341.4,4341.3,0.7728]
[1757049535158,9.98340443,4341.4,4341.3,0.3022]
[1757049535362,9.98340443,4341.4,4341.3,0.004]
[1757049535786,6.09540443,4341.4,4341.3,0.004]
[1757049535988,9.98440443,4341.4,4341.3,0.004]
[1757049537090,10.19860463,4341.4,4341.3,0.004]
[1757049537271,6.09561667,4341.0,4340.9,0.004]
[1757049537589,15.23465602,4341.0,4340.9,0.004]
[1757049538063,15.34985602,4341.0,4340.9,0.004]
[1757049538569,15.34985602,4341.0,4340.9,1.2656]
[1757049539094,11.46285602,4341.0,4340.9,0.004]
[1757049539286,15.34985602,4341.0,4340.9,0.004]
[1757049539891,11.46285602,4341.0,4340.9,0.004]
[1757049540075,15.34985602,4341.0,4340.9,0.004]
[1757049540270,15.34985602,4341.0,4340.9,0.795]
[1757049540471,11.79481667,4341.0,4340.9,1.2656]
[1757049542295,7.11581667,4341.0,4340.9,1.2656]
[1757049542482,11.00181667,4341.0,4340.9,1.2656]
[1757049542791,11.79381667,4341.0,4340.9,1.2656]
[1757049543181,11.79481667,4341.0,4340.9,1.2656]
[1757049543587,4.8122,4341.0,4340.9,1.2656]
[1757049543800,9.30681667,4341.0,4340.9,1.2656]
[1757049544696,10.09881667,4341.0,4340.9,1.2656]
[1757049547099,10.19781667,4341.0,4340.9,0.004]
[1757049547407,6.09566974,4340.9,4340.8,1e-08]
[1757049547611,6.09588204,4340.5,4340.4,0.004]
[1757049547819,13.65612139,4340.5,4340.4,0.004]
[1757049551285,10.20288204,4340.5,4340.4,0.004]
[1757049551485,13.75792139,4340.5,4340.4,0.004]
[1757049552680,6.09593512,4340.4,4340.1,0.004]
[1757049552881,7.34703935,4340.2,4340.1,0.004]
[1757049553100,9.86948063,4340.2,4340.1,0.004]
[1757049554216,9.86948063,4340.2,4340.1,1e-08]
[1757049554915,2.30420055,4339.9,4339.6,1e-08]
[1757049555115,7.34703935,4339.7,4339.6,1e-08]
[1757049555417,9.87104609,4339.7,4339.6,1e-08]
[1757049555804,9.76654609,4339.7,4339.6,1e-08]
[1757049556706,9.87104609,4339.7,4339.6,1e-08]
[1757049559611,9.87204609,4339.7,4339.6,1e-08]
[1757049560137,9.76754609,4339.7,4339.6,1e-08]
[1757049562539,9.86654609,4339.7,4339.6,1e-08]
[1757049565422,6.31150674,4339.7,4339.6,1e-08]
[1757049569341,6.21250674,4339.7,4339.6,0.75700001]
[1757049569520,10.09350674,4339.7,4339.6,1.21480001]
[1757049572865,10.09350674,4339.7,4339.6,1e-08]
[1757049573952,10.09350674,4339.7,4339.6,0.45780001]
[1757049574840,10.09350674,4339.7,4339.6,1e-08]
[1757049575019,10.09350674,4339.7,4339.6,1.21480001]
[1757049575636,10.09350674,4339.7,4339.6,0.76050001]
[1757049575958,10.09350674,4339.7,4339.6,1e-08]
[1757049576253,10.19250674,4339.7,4339.6,1e-08]
[1757049576616,10.09350674,4339.7,4339.6,1e-08]
[1757049577347,10.09350674,4339.7,4339.6,0.45780001]
[1757049579458,10.09350674,4339.7,4339.6,1e-08]
[1757049580754,10.09350674,4339.7,4339.6,0.45900001]
[1757049582867,10.38150674,4339.7,4339.6,1e-08]
[1757049583324,10.09350674,4339.7,4339.6,1e-08]
[1757049584436,6.21250674,4339.7,4339.6,0.30750001]
[1757049584640,10.08650674,4339.7,4339.6,1.22460001]
[1757049586525,10.08650674,4339.7,4339.6,1e-08]
[1757049589072,10.08650674,4339.7,4339.6,0.45900001]
[1757049593363,10.47192388,4339.7,4339.6,1e-08]
[1757049595269,10.37292388,4339.7,4339.6,1e-08]
[1757049596152,10.47332388,4339.7,4339.6,1e-08]
[1757049600255,3.09667849,4339.0,4338.8,0.4831]
[1757049600451,11.77587849,4339.0,4338.9,0.463]
[1757049600674,11.77587849,4339.0,4338.9,1.2286]
[1757049602753,4.90987849,4339.0,4338.9,1.2286]
[1757049602949,5.6812,4339.0,4338.9,1.2286]
[1757049603150,7.98587849,4339.0,4338.9,1.2286]
[1757049603672,10.98587849,4339.0,4338.9,1.2286]
[1757049603876,11.77787849,4339.0,4338.9,1.2286]
[1757049606981,6.21187849,4339.0,4338.9,1.2286]
[1757049607282,10.07887849,4339.0,4338.9,1.2286]
[1757049612893,6.21187849,4339.0,4338.9,1.2286]
[1757049613057,10.07587849,4339.0,4338.9,1.2286]
[1757049615095,10.07387849,4339.0,4338.9,1.2286]
[1757049621593,10.07387849,4339.0,4338.9,0.7696]
[1757049621782,10.07387849,4339.0,4338.9,1.2182]
[1757049633434,3.0,4339.0,4338.9,1.34372]
[1757049637220,0.1162,4339.1,4338.9,1.34372]
[1757049637416,0.1162,4339.1,4338.9,0.43702]
[1757049637715,0.1162,4339.1,4339.0,0.9292]
[1757049638116,0.1162,4339.1,4339.0,1.2395]
[1757049640207,0.001,4339.1,4339.0,4.80160533]
[1757049640519,0.001,4339.1,4339.0,10.96528382]
[1757049643125,0.001,4339.1,4339.0,11.08048382]
[1757049643325,0.001,4339.1,4339.0,11.19568382]
[1757049643624,0.001,4339.1,4339.0,12.54942805]
[1757049650761,0.001,4339.1,4339.0,1.58414423]
[1757049650925,0.2152,4339.1,4338.9,0.004]
[1757049651261,2.30467849,4339.0,4338.9,3.862]
[1757049651557,2.40507849,4339.0,4338.9,3.862]
[1757049652353,3.19707849,4339.0,4338.9,0.004]
[1757049652652,6.71227849,4339.0,4338.9,0.004]
[1757049652853,6.80467847,4339.0,4338.9,0.004]
[1757049655829,6.28947847,4339.0,4338.9,0.004]
[1757049656248,0.09239998,4339.0,4338.9,0.004]
[1757049656577,0.1162,4339.1,4338.9,1.2431]
[1757049656866,0.1162,4339.1,4339.0,0.9332]
[1757049656867,0.001,4339.1,4339.0,0.9332]
[1757049657234,0.001,4339.1,4339.0,1.2391]
[1757049659048,0.001,4339.1,4339.0,0.3059]
[1757049659262,0.001,4339.1,4338.9,3.862]
[1757049659637,0.001,4339.1,4338.9,4.334]
[1757049659861,0.001,4339.1,4338.9,4.7952]
[1757049660377,0.001,4339.1,4339.0,1.2391]
[1757049662248,0.001,4339.1,4339.0,1.2431]
[1757049662770,0.001,4339.1,4339.0,5.1011]
[1757049664351,0.001,4339.1,4339.0,1.2431]
[1757049664545,0.001,4339.1,4339.0,5.1011]
[1757049665588,2.60852538,4339.1,4339.0,3.862]
[1757049665751,6.67592538,4339.1,4339.0,0.004]
[1757049665946,6.71532538,4339.1,4339.0,0.004]
[1757049666161,6.40052538,4339.1,4339.0,0.004]
[1757049666568,6.49292344,4339.1,4339.0,0.004]
[1757049676176,7.09414058,4339.1,4339.0,0.004]
[1757049678140,6.80772344,4339.1,4339.0,0.004]
[1757049678344,3.792,4339.0,4338.8,0.029]
[1757049678670,13.51683694,4338.9,4338.8,0.029]
[1757049678846,14.24973694,4338.9,4338.8,0.029]
[1757049679784,14.24973694,4338.9,4338.7,0.004]
[1757049679785,6.09678473,4338.8,4338.7,0.004]
[1757049679950,6.41518473,4338.8,4338.7,0.004]
[1757049680150,6.71188473,4338.8,4338.7,0.004]
[1757049680946,2.30483785,4338.7,4338.0,0.004]
[1757049681256,13.5169963,4338.6,4338.0,0.004]
[1757049681460,13.9744963,4338.6,4338.0,0.004]
[1757049681659,14.06691764,4338.6,4338.0,0.004]
[1757049682658,14.02391764,4338.6,4338.0,0.004]
[1757049683078,10.46181231,4338.6,4338.0,0.004]
[1757049684092,10.46181231,4338.6,4338.1,0.4724]
[1757049688149,10.73721231,4338.6,4338.1,0.004]
[1757049688350,11.06662945,4338.6,4338.1,0.004]
[1757049688779,12.76562945,4338.6,4338.1,0.004]
[1757049689282,12.72262945,4338.6,4338.5,1e-08]
[1757049689472,12.47921231,4338.6,4338.5,1e-08]
[1757049689669,12.76562945,4338.6,4338.5,1e-08]
[1757049691166,12.72262945,4338.6,4338.5,1e-08]
[1757049691557,12.44722945,4338.6,4338.5,1e-08]
[1757049697376,12.44722945,4338.6,4338.5,0.31190001]
[1757049697377,8.00351231,4338.6,4338.5,0.31190001]
[1757049697618,0.1152,4338.6,4338.5,1.27690001]
[1757049697913,0.1152,4338.6,4338.5,1.40499001]
[1757049698696,0.001,4339.1,4338.5,3.70993256]
[1757049699025,0.001,4339.1,4338.6,3.21867863]
[1757049699239,0.001,4339.1,4338.6,3.24172753]
[1757049699407,0.001,4339.1,4339.0,0.3126]
[1757049699928,0.001,4339.1,4339.0,1.2264]
[1757049701678,2.30562538,4339.1,4339.0,1.2264]
[1757049701885,2.42082538,4339.1,4339.0,1.2264]
[1757049702085,6.21282538,4339.1,4339.0,1.2264]
[1757049703474,3.1162,4339.1,4339.0,1.2264]
[1757049704314,5.42082538,4339.1,4339.0,1.2264]
[1757049704692,3.1162,4339.1,4339.0,1.2264]
[1757049705098,5.42082538,4339.1,4339.0,1.2264]
[1757049711408,3.001,4339.1,4339.0,1.2264]
[1757049711728,3.001,4339.1,4339.0,1.34904]
[1757049712391,3.001,4339.1,4339.0,1.2264]
[1757049712695,3.001,4339.1,4338.6,0.4586]
[1757049712898,0.1152,4338.9,4338.7,0.9138]
[1757049713098,0.1152,4338.9,4338.8,1.2264]
[1757049715227,2.41993161,4338.9,4338.8,1.2264]
[1757049715726,0.1152,4338.9,4338.8,1.2264]
[1757049716038,0.1152,4338.9,4338.8,1.34944]
[1757049717509,3.001,4339.1,4338.8,1.34944]
[1757049717743,3.001,4339.1,4338.8,1.46464]
[1757049717908,3.001,4339.1,4338.8,0.55084]
[1757049718112,3.001,4339.1,4338.9,0.9138]
[1757049718436,3.001,4339.1,4339.0,1.2264]
[1757049721529,3.001,4339.1,4339.0,5.0844]
[1757049725274,3.001,4339.1,4339.0,5.29875601]
[1757049726873,3.001,4339.1,4339.0,1.44075601]
[1757049727081,3.001,4339.1,4339.0,5.29875601]
[1757049727991,0.001,4339.1,4339.0,8.1448301]
[1757049729386,0.001,4339.1,4339.0,1.98215161]
[1757049729694,0.001,4339.1,4339.0,8.1438301]
[1757049729865,0.001,4339.1,4339.0,8.14414916]
[1757049735919,0.001,4339.1,4339.0,5.83947067]
[1757049736084,0.001,4339.1,4339.0,5.38427067]
[1757049736414,0.001,4339.1,4339.0,8.12584916]
[1757049740324,0.1,4339.1,4339.0,4.07167507]
[1757049740519,0.1,4339.1,4339.0,3.857]
[1757049741310,2.40462538,4339.1,4339.0,3.857]
[1757049745737,0.1,4339.1,4339.0,3.857]
[1757049746501,2.40462538,4339.1,4339.0,3.857]
[1757049748830,0.1,4339.1,4339.0,3.857]
[1757049748997,2.40462538,4339.1,4339.0,3.857]
[1757049749825,0.1,4339.1,4339.0,3.857]
[1757049750040,0.001,4339.1,4339.0,3.857]
[1757049750218,2.30562538,4339.1,4339.0,3.857]
[1757049750895,2.42082538,4339.1,4339.0,3.857]
[1757049751440,5.51982538,4339.1,4339.0,3.857]
[1757049751805,2.30480318,4338.8,4338.6,0.004]
[1757049752004,2.42000318,4338.8,4338.7,3.857]
[1757049752226,2.71240318,4338.8,4338.7,3.857]
[1757049752752,2.30483785,4338.7,4338.6,0.004]
[1757049753223,6.82963785,4338.7,4338.6,0.004]
[1757049754723,6.77983785,4338.7,4338.6,0.004]
[1757049756630,6.38923785,4338.7,4338.6,0.004]
[1757049765015,6.40923785,4338.7,4338.6,0.004]
[1757049773556,6.11683785,4338.7,4338.6,0.004]
[1757049775872,6.11683785,4338.7,4338.6,0.4774]
[1757049780289,6.11683785,4338.7,4338.6,0.2944]
[1757049780290,3.813,4338.7,4338.6,0.2944]
[1757049780586,6.11783785,4338.7,4338.6,1.2588]
[1757049788888,6.11783785,4338.7,4338.6,0.7678]
[1757049790098,6.21683785,4338.7,4338.6,0.004]
[1757049793176,9.77817762,4338.7,4338.6,0.004]
[1757049793505,10.67813635,4338.7,4338.6,0.004]
[1757049793864,2.30489097,4338.6,4338.5,1e-08]
[1757049794186,9.95389097,4338.6,4338.5,1e-08]
[1757049794398,10.68469097,4338.6,4338.5,1e-08]
[1757049794594,6.0969441,4338.5,4338.4,1e-08]
[1757049794793,6.2121441,4338.5,4338.4,1e-08]
[1757049794991,6.9430441,4338.5,4338.4,1e-08]
[1757049797287,7.03547078,4338.5,4338.4,1e-08]
[1757049797700,10.18157078,4338.5,4338.4,1e-08]
[1757049797890,10.28057078,4338.5,4338.4,1e-08]
[1757049801125,11.18052951,4338.5,4338.4,1e-08]
[1757049801483,6.09699723,4338.4,4338.3,1e-08]
[1757049801705,6.72889723,4338.4,4338.3,1e-08]
[1757049801910,6.82929723,4338.4,4338.3,1e-08]
[1757049802301,6.84929723,4338.4,4338.3,1e-08]
[1757049802813,6.60799723,4338.4,4338.3,1e-08]
[1757049803421,6.21739723,4338.4,4338.3,1e-08]
[1757049813802,6.09720977,4338.0,4337.9,0.004]
[1757049814000,9.97420977,4338.0,4337.9,0.004]
[1757049814538,10.06664563,4338.0,4337.9,0.004]
[1757049814714,10.18184563,4338.0,4337.9,0.004]
[1757049815742,10.39927204,4338.0,4337.9,0.004]
[1757049816845,10.29747204,4338.0,4337.9,0.004]
[1757049817626,10.29747204,4338.0,4337.9,0.4712]
[1757049817962,10.18184563,4338.0,4337.9,1.2594]
[1757049822229,10.18184563,4338.0,4337.9,0.4876]
[1757049822458,10.48674563,4338.0,4337.9,0.004]
[1757049822964,10.18184563,4338.0,4337.9,0.004]
[1757049823862,10.18184563,4338.0,4337.9,0.466]
[1757049825868,10.18184563,4338.0,4337.9,0.004]
[1757049830643,10.18184563,4338.0,4337.9,0.7772]
[1757049831271,10.18184563,4338.0,4337.9,1.2605]
[1757049833173,10.18184563,4338.0,4337.9,0.7772]
[1757049834084,10.18284563,4338.0,4337.9,0.7772]